[Event "FIDE U16 Olympiad_boards_1-80"]
[Site "Eindhoven, Netherlands"]
[Date "2023.08.13"]
[Round "1.5"]
[White "Xue, Haowen"]
[Black "Kurt, Sascha"]
[Result "1/2-1/2"]
[TimeControl "2700+10"]
[WhiteElo "2214"]
[BlackElo "1800"]

1. Nf3 {[%clk 00:45:17]} {[%emt 00:00:02]} Nf6 {[%clk 00:45:14]} {[%emt
00:00:06]} 2. b3 {[%clk 00:45:08]} {[%emt 00:00:19]} g6 {[%clk 00:45:13]}
{[%emt 00:00:11]} 3. Bb2 {[%clk 00:45:16]} {[%emt 00:00:03]} Bg7 {[%clk
00:45:21]} {[%emt 00:00:01]} 4. g3 {[%clk 00:45:24]} {[%emt 00:00:02]} O-O
{[%clk 00:45:09]} {[%emt 00:00:22]} 5. Bg2 {[%clk 00:45:32]} {[%emt 00:00:02]}
d5 {[%clk 00:45:16]} {[%emt 00:00:03]} 6. c4 {[%clk 00:45:25]} {[%emt
00:00:17]} c6 {[%clk 00:45:07]} {[%emt 00:00:19]} 7. O-O {[%clk 00:45:26]}
{[%emt 00:00:09]} e6 {[%clk 00:44:03]} {[%emt 00:01:14]} 8. d3 {[%clk
00:42:55]} {[%emt 00:02:40]} b6 {[%clk 00:42:18]} {[%emt 00:01:55]} 9. Nbd2
{[%clk 00:42:20]} {[%emt 00:00:45]} Bb7 {[%clk 00:41:53]} {[%emt 00:00:36]} 10.
e3 {[%clk 00:41:38]} {[%emt 00:00:51]} Nbd7 {[%clk 00:40:40]} {[%emt 00:01:23]}
11. Qc2 {[%clk 00:39:43]} {[%emt 00:02:05]} Rc8 {[%clk 00:39:37]} {[%emt
00:01:13]} 12. Rad1 {[%clk 00:38:56]} {[%emt 00:00:56]} Qc7 {[%clk 00:37:50]}
{[%emt 00:01:57]} 13. Qb1 {[%clk 00:38:22]} {[%emt 00:00:44]} Qb8 {[%clk
00:34:36]} {[%emt 00:03:24]} 14. Qa1 {[%clk 00:38:20]} {[%emt 00:00:12]} Qa8
{[%clk 00:33:52]} {[%emt 00:00:54]} 15. e4 {[%clk 00:30:33]} {[%emt 00:07:57]}
Ne8 {[%clk 00:28:47]} {[%emt 00:05:15]} 16. exd5 {[%clk 00:20:21]} {[%emt
00:10:22]} cxd5 {[%clk 00:24:21]} {[%emt 00:04:37]} 17. Ne5 {[%clk 00:15:54]}
{[%emt 00:04:37]} Nxe5 {[%clk 00:14:53]} {[%emt 00:09:38]} 18. Bxe5 {[%clk
00:16:00]} {[%emt 00:00:03]} dxc4 {[%clk 00:11:00]} {[%emt 00:04:04]} 19. Bxb7
{[%clk 00:16:00]} {[%emt 00:00:10]} Qxb7 {[%clk 00:11:07]} {[%emt 00:00:03]} 20.
dxc4 {[%clk 00:16:03]} {[%emt 00:00:06]} Qe7 {[%clk 00:08:38]} {[%emt
00:02:40]} 21. Bxg7 {[%clk 00:13:15]} {[%emt 00:02:58]} Nxg7 {[%clk 00:08:42]}
{[%emt 00:00:04]} 22. Ne4 {[%clk 00:13:23]} {[%emt 00:00:04]} f6 {[%clk
00:05:34]} {[%emt 00:03:19]} 23. Rd3 {[%clk 00:13:07]} {[%emt 00:00:25]} e5
{[%clk 00:04:33]} {[%emt 00:01:12]} 24. Nc3 {[%clk 00:10:53]} {[%emt 00:02:23]}
Ne6 {[%clk 00:04:09]} {[%emt 00:00:34]} 25. Nd5 {[%clk 00:10:06]} {[%emt
00:00:57]} Qg7 {[%clk 00:03:21]} {[%emt 00:00:58]} 26. Re1 {[%clk 00:04:21]}
{[%emt 00:05:55]} Rcd8 {[%clk 00:02:47]} {[%emt 00:00:44]} 27. h4 {[%clk
00:03:29]} {[%emt 00:01:01]} Nc7 {[%clk 00:01:46]} {[%emt 00:01:11]} 28. Red1
{[%clk 00:03:19]} {[%emt 00:00:20]} Nxd5 {[%clk 00:01:46]} {[%emt 00:00:11]} 29.
Rxd5 {[%clk 00:03:23]} {[%emt 00:00:06]} Qc7 {[%clk 00:01:53]} {[%emt
00:00:03]} 30. Qc3 {[%clk 00:01:53]} {[%emt 00:01:40]} Rxd5 {[%clk 00:01:15]}
{[%emt 00:00:49]} 31. Rxd5 {[%emt 00:00:09]} Rd8 {[%clk 00:01:17]} 32. Qd3
{[%clk 00:01:12]} {[%emt 00:01:00]} Rxd5 {[%clk 00:01:24]} {[%emt 00:00:02]} 33.
Qxd5+ {[%clk 00:00:56]} {[%emt 00:00:26]} Kg7 {[%clk 00:01:10]} {[%emt
00:00:24]} 34. Kf1 {[%clk 00:00:56]} {[%emt 00:00:11]} Qc8 {[%clk 00:00:48]}
{[%emt 00:00:31]} 35. Ke1 {[%clk 00:00:58]} {[%emt 00:00:08]} a5 {[%clk
00:00:40]} {[%emt 00:00:18]} 36. Ke2 {[%clk 00:00:44]} {[%emt 00:00:25]} Qg4+
{[%clk 00:00:35]} {[%emt 00:00:14]} 37. Ke3 {[%clk 00:00:49]} {[%emt 00:00:06]}
Qc8 {[%clk 00:00:28]} {[%emt 00:00:17]} 38. Qd6 {[%clk 00:00:30]} {[%emt
00:00:29]} Qb7 {[%clk 00:00:28]} {[%emt 00:00:10]} 39. f3 {[%clk 00:00:25]}
{[%emt 00:00:15]} Kf7 {[%clk 00:00:26]} {[%emt 00:00:12]} 40. g4 {[%clk
00:00:14]} {[%emt 00:00:21]} h5 {[%clk 00:00:17]} {[%emt 00:00:19]} 41. gxh5
{[%clk 00:00:15]} {[%emt 00:00:09]} gxh5 {[%clk 00:00:26]} 42. Qd3 {[%clk
00:00:12]} {[%emt 00:00:13]} Kg7 {[%clk 00:00:22]} {[%emt 00:00:14]} 43. Ke2
{[%clk 00:00:17]} {[%emt 00:00:06]} Qe7 {[%clk 00:00:19]} {[%emt 00:00:13]} 44.
Qd2 {[%clk 00:00:12]} {[%emt 00:00:16]} Qc5 {[%clk 00:00:16]} {[%emt 00:00:12]}
45. Qd7+ {[%clk 00:00:17]} {[%emt 00:00:05]} Kg6 {[%clk 00:00:13]} {[%emt
00:00:14]} 46. Qe8+ {[%clk 00:00:24]} {[%emt 00:00:03]} Kh6 {[%clk 00:00:22]}
47. Qh8+ {[%clk 00:00:25]} {[%emt 00:00:09]} Kg6 {[%clk 00:00:31]} {[%emt
00:00:01]} 48. Qg8+ {[%clk 00:00:34]} {[%emt 00:00:01]} Kh6 {[%clk 00:00:40]}
{[%emt 00:00:01]} 49. Qf7 {[%clk 00:00:35]} {[%emt 00:00:08]} Qd6 {[%clk
00:00:41]} {[%emt 00:00:09]} 50. a3 {[%clk 00:00:13]} {[%emt 00:00:33]} e4
{[%clk 00:00:18]} {[%emt 00:00:33]} 51. fxe4 {[%clk 00:00:20]} {[%emt
00:00:03]} Qh2+ {[%clk 00:00:27]} 52. Kd3 {[%clk 00:00:21]} {[%emt 00:00:08]}
Qxh4 {[%clk 00:00:29]} {[%emt 00:00:08]} 53. b4 {[%clk 00:00:13]} {[%emt
00:00:18]} Qg3+ {[%clk 00:00:32]} {[%emt 00:00:08]} 54. Kc2 {[%clk 00:00:13]}
{[%emt 00:00:10]} Qe5 {[%clk 00:00:29]} {[%emt 00:00:12]} 55. Qf8+ {[%clk
00:00:12]} {[%emt 00:00:10]} Kg5 {[%clk 00:00:30]} {[%emt 00:00:08]} 56. Kb3
{[%clk 00:00:12]} {[%emt 00:00:12]} axb4 {[%clk 00:00:25]} {[%emt 00:00:15]} 57.
axb4 {[%clk 00:00:17]} {[%emt 00:00:05]} Qxe4 {[%clk 00:00:30]} {[%emt
00:00:05]} 58. Qg7+ {[%clk 00:00:11]} {[%emt 00:00:17]} Kf5 {[%clk 00:00:17]}
{[%emt 00:00:22]} 1/2-1/2

[Event "FIDE U16 Olympiad_boards_1-80"]
[Site "Eindhoven, Netherlands"]
[Date "2023.08.13"]
[Round "1.6"]
[White "Grooten, Tommy"]
[Black "Xiao, Tong(Qd)"]
[Result "0-1"]
[TimeControl "2700+10"]
[WhiteElo "1908"]
[BlackElo "2128"]

1. d4 {[%clk 00:45:18]} {[%emt 00:00:02]} Nf6 {[%clk 00:45:14]} {[%emt
00:00:06]} 2. c4 {[%clk 00:45:17]} {[%emt 00:00:11]} e6 {[%clk 00:45:15]}
{[%emt 00:00:09]} 3. Nc3 {[%clk 00:45:06]} {[%emt 00:00:21]} Bb4 {[%clk
00:45:03]} {[%emt 00:00:22]} 4. Qc2 {[%clk 00:45:04]} {[%emt 00:00:12]} d5
{[%clk 00:44:54]} {[%emt 00:00:19]} 5. e3 {[%clk 00:44:41]} {[%emt 00:00:33]}
c5 {[%clk 00:43:33]} {[%emt 00:01:31]} 6. Nf3 {[%clk 00:44:34]} {[%emt
00:00:17]} Nc6 {[%clk 00:43:19]} {[%emt 00:00:24]} 7. Be2 {[%clk 00:43:05]}
{[%emt 00:01:39]} O-O {[%clk 00:42:17]} {[%emt 00:01:11]} 8. O-O {[%clk
00:41:58]} {[%emt 00:01:17]} cxd4 {[%clk 00:41:41]} {[%emt 00:00:46]} 9. exd4
{[%clk 00:41:55]} {[%emt 00:00:13]} dxc4 {[%clk 00:41:34]} {[%emt 00:00:18]} 10.
Rd1 {[%clk 00:40:48]} {[%emt 00:01:17]} Bxc3 {[%clk 00:39:08]} {[%emt
00:02:36]} 11. Qxc3 {[%clk 00:40:16]} {[%emt 00:00:42]} b5 {[%clk 00:39:03]}
{[%emt 00:00:14]} 12. a4 {[%clk 00:38:53]} {[%emt 00:01:33]} Nd5 {[%clk
00:38:16]} {[%emt 00:00:57]} 13. Qc2 {[%clk 00:33:15]} {[%emt 00:05:49]} Ncb4
{[%clk 00:36:41]} {[%emt 00:01:44]} 14. Qe4 {[%clk 00:29:37]} {[%emt 00:03:48]}
f5 {[%clk 00:34:25]} {[%emt 00:02:27]} 15. Qe5 {[%clk 00:28:16]} {[%emt
00:01:30]} Nc6 {[%clk 00:33:58]} {[%emt 00:00:37]} 16. Qg3 {[%clk 00:28:18]}
{[%emt 00:00:09]} f4 {[%clk 00:32:03]} {[%emt 00:02:05]} 17. Qg5 {[%clk
00:27:08]} {[%emt 00:01:19]} Ba6 {[%clk 00:31:45]} {[%emt 00:00:27]} 18. axb5
{[%clk 00:26:22]} {[%emt 00:00:57]} Bxb5 {[%clk 00:31:49]} {[%emt 00:00:06]} 19.
Qg4 {[%clk 00:24:48]} {[%emt 00:01:44]} Qf6 {[%clk 00:28:43]} {[%emt 00:03:16]}
20. Ng5 {[%clk 00:22:08]} {[%emt 00:02:50]} Nxd4 {[%clk 00:20:02]} {[%emt
00:08:50]} 21. Rxd4 {[%clk 00:21:32]} {[%emt 00:00:47]} Qxd4 {[%clk 00:20:10]}
{[%emt 00:00:02]} 22. Qxe6+ {[%clk 00:15:37]} {[%emt 00:06:05]} Kh8 {[%clk
00:20:19]} {[%emt 00:00:01]} 23. Nf7+ {[%clk 00:15:45]} {[%emt 00:00:02]} Rxf7
{[%clk 00:20:27]} {[%emt 00:00:02]} 24. Qxf7 {[%clk 00:15:54]} {[%emt
00:00:01]} a6 {[%clk 00:11:16]} {[%emt 00:09:21]} 25. h3 {[%clk 00:13:54]}
{[%emt 00:02:10]} Nf6 {[%clk 00:09:34]} {[%emt 00:01:51]} 26. Bg4 {[%clk
00:09:46]} {[%emt 00:04:18]} Re8 {[%clk 00:08:40]} {[%emt 00:01:03]} 27. Be6
{[%clk 00:04:00]} {[%emt 00:05:57]} Qe4 {[%clk 00:08:04]} {[%emt 00:00:46]} 28.
Bxf4 {[%clk 00:03:28]} {[%emt 00:00:43]} Qxf4 {[%clk 00:07:43]} {[%emt
00:00:30]} 29. Rd1 {[%clk 00:03:28]} {[%emt 00:00:10]} Qe4 {[%clk 00:07:27]}
{[%emt 00:00:26]} 30. Bd5 {[%clk 00:02:26]} {[%emt 00:01:12]} Nxd5 {[%clk
00:06:51]} {[%emt 00:00:47]} 31. Rxd5 {[%clk 00:02:25]} {[%emt 00:00:11]} Qe6
{[%clk 00:06:40]} {[%emt 00:00:19]} 32. Qh5 {[%clk 00:01:47]} {[%emt 00:00:50]}
Qe1+ {[%clk 00:06:17]} {[%emt 00:00:33]} 33. Kh2 {[%clk 00:01:55]} {[%emt
00:00:03]} Qxf2 {[%clk 00:06:14]} {[%emt 00:00:12]} 34. Rf5 {[%clk 00:02:03]}
{[%emt 00:00:02]} Qe3 {[%clk 00:06:07]} {[%emt 00:00:17]} 35. Rf3 {[%clk
00:01:49]} {[%emt 00:00:24]} Qe6 {[%clk 00:06:00]} {[%emt 00:00:08]} 36. Rf2
{[%clk 00:00:44]} {[%emt 00:01:23]} h6 {[%clk 00:06:03]} {[%emt 00:00:08]} 37.
Qf3 {[%clk 00:00:20]} {[%emt 00:00:34]} Bc6 {[%clk 00:06:10]} {[%emt 00:00:03]}
38. Qa3 {[%clk 00:00:19]} {[%emt 00:00:10]} Qe5+ {[%clk 00:06:16]} {[%emt
00:00:06]} 39. g3 {[%clk 00:00:28]} {[%emt 00:00:02]} Qe1 {[%clk 00:06:15]}
{[%emt 00:00:10]} 40. Rf8+ {[%clk 00:00:36]} {[%emt 00:00:03]} Kh7 {[%clk
00:06:23]} {[%emt 00:00:02]} 41. Rxe8 {[%clk 00:00:15]} {[%emt 00:00:30]} Qh1#
{[%clk 00:06:30]} {[%emt 00:00:02]} 0-1

[Event "FIDE U16 Olympiad_boards_1-80"]
[Site "Eindhoven, Netherlands"]
[Date "2023.08.13"]
[Round "1.7"]
[White "Kong, Xiangrui"]
[Black "Feng, Elysia"]
[Result "1-0"]
[TimeControl "2700+10"]
[WhiteElo "2381"]
[BlackElo "1635"]

1. d4 {[%clk 00:45:18]} d5 {[%clk 00:45:15]} {[%emt 00:00:05]} 2. c4 {[%clk
00:45:26]} {[%emt 00:00:02]} e6 {[%clk 00:45:23]} {[%emt 00:00:01]} 3. Nc3
{[%clk 00:45:26]} {[%emt 00:00:10]} c5 {[%clk 00:45:32]} {[%emt 00:00:01]} 4.
e3 {[%clk 00:44:25]} {[%emt 00:01:11]} Nf6 {[%clk 00:45:34]} {[%emt 00:00:08]}
5. Nf3 {[%clk 00:44:33]} {[%emt 00:00:01]} Nc6 {[%clk 00:45:40]} {[%emt
00:00:05]} 6. cxd5 {[%clk 00:44:42]} {[%emt 00:00:01]} exd5 {[%clk 00:45:49]}
{[%emt 00:00:01]} 7. Bb5 {[%clk 00:44:51]} {[%emt 00:00:01]} Be7 {[%clk
00:44:12]} {[%emt 00:01:46]} 8. O-O {[%clk 00:44:31]} {[%emt 00:00:29]} O-O
{[%clk 00:44:19]} {[%emt 00:00:03]} 9. b3 {[%clk 00:42:45]} {[%emt 00:01:56]}
Bg4 {[%clk 00:43:35]} {[%emt 00:00:54]} 10. dxc5 {[%clk 00:41:51]} {[%emt
00:01:03]} Bxc5 {[%clk 00:43:41]} {[%emt 00:00:05]} 11. Bb2 {[%clk 00:40:51]}
{[%emt 00:01:10]} Qd6 {[%clk 00:40:48]} {[%emt 00:03:03]} 12. Rc1 {[%clk
00:39:56]} {[%emt 00:01:05]} a6 {[%clk 00:39:24]} {[%emt 00:01:34]} 13. Bxc6
{[%clk 00:39:40]} {[%emt 00:00:26]} bxc6 {[%clk 00:39:30]} {[%emt 00:00:05]} 14.
Ne2 {[%clk 00:38:16]} {[%emt 00:01:32]} Ne4 {[%clk 00:35:02]} {[%emt 00:04:38]}
15. Ne5 {[%clk 00:29:40]} {[%emt 00:08:46]} Be6 {[%clk 00:28:23]} {[%emt
00:06:49]} 16. Nf4 {[%clk 00:23:55]} {[%emt 00:05:56]} Rac8 {[%clk 00:24:44]}
{[%emt 00:03:49]} 17. Qe2 {[%clk 00:21:08]} {[%emt 00:02:57]} a5 {[%clk
00:19:14]} {[%emt 00:05:40]} 18. Rfd1 {[%clk 00:20:39]} {[%emt 00:00:38]} f6
{[%clk 00:15:52]} {[%emt 00:03:32]} 19. Ned3 {[%clk 00:17:20]} {[%emt
00:03:29]} Ba7 {[%clk 00:13:51]} {[%emt 00:02:11]} 20. Bd4 {[%clk 00:12:11]}
{[%emt 00:05:19]} c5 {[%clk 00:07:38]} {[%emt 00:06:25]} 21. Nxe6 {[%clk
00:11:38]} {[%emt 00:00:42]} Qxe6 {[%clk 00:07:36]} {[%emt 00:00:12]} 22. Nf4
{[%clk 00:10:44]} {[%emt 00:01:03]} Qd6 {[%clk 00:04:54]} {[%emt 00:02:52]} 23.
Bb2 {[%clk 00:10:33]} {[%emt 00:00:21]} d4 {[%clk 00:05:04]} {[%emt 00:00:01]}
24. Qc2 {[%clk 00:06:43]} {[%emt 00:03:59]} Qe5 {[%clk 00:02:57]} {[%emt
00:02:17]} 25. Qc4+ {[%clk 00:05:52]} {[%emt 00:01:01]} Kh8 {[%clk 00:03:06]}
{[%emt 00:00:01]} 26. Bxd4 {[%clk 00:05:49]} {[%emt 00:00:13]} Qe7 {[%clk
00:02:36]} {[%emt 00:00:41]} 27. Bb2 {[%clk 00:05:43]} {[%emt 00:00:15]} Rfe8
{[%clk 00:02:36]} {[%emt 00:00:10]} 28. Nd5 {[%clk 00:05:11]} {[%emt 00:00:42]}
Qf7 {[%clk 00:02:00]} {[%emt 00:00:47]} 29. Nb6 {[%clk 00:05:20]} Qxc4 {[%clk
00:01:39]} {[%emt 00:00:31]} 30. Nxc4 {[%clk 00:05:28]} {[%emt 00:00:02]} Re6
{[%clk 00:01:28]} {[%emt 00:00:20]} 31. Rd7 {[%clk 00:05:11]} {[%emt 00:00:27]}
Bb6 {[%clk 00:01:05]} {[%emt 00:00:34]} 32. Rcd1 {[%clk 00:05:04]} {[%emt
00:00:16]} Bc7 {[%clk 00:01:14]} {[%emt 00:00:02]} 33. Rxc7 {[%clk 00:05:04]}
{[%emt 00:00:09]} 1-0

[Event "FIDE U16 Olympiad_boards_1-80"]
[Site "Eindhoven, Netherlands"]
[Date "2023.08.13"]
[Round "1.8"]
[White "Leenen, Boyd"]
[Black "Lu, Miaoyi"]
[Result "0-1"]
[TimeControl "2700+10"]
[WhiteElo "2008"]
[BlackElo "2170"]

1. d4 {[%clk 00:45:19]} Nf6 {[%clk 00:45:15]} {[%emt 00:00:05]} 2. Nf3 {[%clk
00:45:26]} {[%emt 00:00:02]} e6 {[%clk 00:45:23]} {[%emt 00:00:02]} 3. c4
{[%clk 00:45:02]} {[%emt 00:00:34]} d5 {[%clk 00:44:53]} {[%emt 00:00:40]} 4.
Nc3 {[%clk 00:44:46]} {[%emt 00:00:26]} dxc4 {[%clk 00:43:16]} {[%emt
00:01:47]} 5. e3 {[%clk 00:44:38]} {[%emt 00:00:17]} a6 {[%clk 00:43:23]}
{[%emt 00:00:04]} 6. Bxc4 {[%clk 00:44:16]} {[%emt 00:00:32]} b5 {[%clk
00:43:28]} {[%emt 00:00:05]} 7. Bd3 {[%clk 00:44:15]} {[%emt 00:00:11]} Bb7
{[%clk 00:43:28]} {[%emt 00:00:10]} 8. a3 {[%clk 00:44:00]} {[%emt 00:00:25]}
c5 {[%clk 00:42:22]} {[%emt 00:01:16]} 9. dxc5 {[%clk 00:41:34]} {[%emt
00:02:37]} Bxc5 {[%clk 00:42:30]} {[%emt 00:00:02]} 10. O-O {[%clk 00:41:19]}
{[%emt 00:00:25]} O-O {[%clk 00:42:15]} {[%emt 00:00:25]} 11. Be2 {[%clk
00:40:37]} {[%emt 00:00:52]} Nbd7 {[%emt 00:01:11]} 12. b4 {[%clk 00:40:32]}
Be7 {[%clk 00:41:17]} {[%emt 00:00:22]} 13. Bb2 {[%clk 00:40:11]} {[%emt
00:00:31]} Qb8 {[%clk 00:34:51]} {[%emt 00:06:36]} 14. Rc1 {[%clk 00:39:06]}
{[%emt 00:01:15]} Rd8 {[%clk 00:29:42]} {[%emt 00:05:18]} 15. Qb3 {[%clk
00:37:46]} {[%emt 00:01:29]} Ng4 {[%clk 00:29:06]} {[%emt 00:00:47]} 16. h3
{[%clk 00:33:23]} {[%emt 00:04:33]} Nge5 {[%clk 00:26:28]} {[%emt 00:02:48]} 17.
Nxe5 {[%clk 00:31:03]} {[%emt 00:02:30]} Qxe5 {[%clk 00:25:14]} {[%emt
00:01:24]} 18. g3 {[%clk 00:23:46]} {[%emt 00:07:26]} Qf5 {[%clk 00:20:16]}
{[%emt 00:05:08]} 19. Kh2 {[%clk 00:21:24]} {[%emt 00:02:32]} Ne5 {[%clk
00:19:18]} {[%emt 00:01:08]} 20. f4 {[%clk 00:17:09]} {[%emt 00:04:25]} Rd2
{[%clk 00:05:15]} {[%emt 00:14:14]} 21. fxe5 {[%clk 00:13:39]} {[%emt
00:03:40]} Qd3 {[%clk 00:05:24]} {[%emt 00:00:01]} 22. Rce1 {[%clk 00:11:15]}
{[%emt 00:02:34]} Qxe3 {[%clk 00:05:24]} {[%emt 00:00:10]} 23. Bc1 {[%clk
00:10:42]} {[%emt 00:00:43]} Bh4 {[%emt 00:00:04]} 24. Ne4 {[%clk 00:06:59]}
{[%emt 00:03:49]} Rxe2+ {[%clk 00:03:45]} {[%emt 00:01:57]} 25. Rxe2 {[%clk
00:06:49]} {[%emt 00:00:20]} Qxe2+ {[%clk 00:03:53]} {[%emt 00:00:02]} 26. Rf2
{[%clk 00:06:52]} {[%emt 00:00:07]} Qxe4 {[%clk 00:03:55]} {[%emt 00:00:08]} 27.
gxh4 {[%clk 00:06:52]} {[%emt 00:00:10]} Qh1+ {[%clk 00:03:53]} {[%emt
00:00:11]} 28. Kg3 {[%clk 00:06:57]} {[%emt 00:00:05]} Qg1+ {[%clk 00:04:01]}
{[%emt 00:00:02]} 0-1

[Event "FIDE U16 Olympiad_boards_1-80"]
[Site "Eindhoven, Netherlands"]
[Date "2023.08.13"]
[Round "1.9"]
[White "Kiladze, Luka"]
[Black "Gurel, Ediz"]
[Result "1/2-1/2"]
[TimeControl "2700+10"]
[WhiteElo "1912"]
[BlackElo "2302"]

1. d4 {[%clk 00:45:14]} {[%emt 00:00:06]} d5 {[%clk 00:45:18]} {[%emt
00:00:03]} 2. c4 {[%clk 00:45:20]} {[%emt 00:00:03]} c6 {[%clk 00:45:27]}
{[%emt 00:00:01]} 3. cxd5 {[%clk 00:43:56]} {[%emt 00:01:35]} cxd5 {[%clk
00:45:36]} {[%emt 00:00:01]} 4. Nc3 {[%clk 00:44:04]} {[%emt 00:00:02]} Nf6
{[%clk 00:45:20]} {[%emt 00:00:26]} 5. Nf3 {[%clk 00:44:06]} {[%emt 00:00:08]}
Nc6 {[%clk 00:45:26]} {[%emt 00:00:04]} 6. Bg5 {[%clk 00:42:56]} {[%emt
00:01:20]} Ne4 {[%clk 00:43:25]} {[%emt 00:02:11]} 7. Bf4 {[%clk 00:41:47]}
{[%emt 00:01:19]} Bf5 {[%clk 00:40:20]} {[%emt 00:03:15]} 8. Qb3 {[%clk
00:38:01]} {[%emt 00:03:55]} e6 {[%clk 00:38:08]} {[%emt 00:02:22]} 9. Qxb7
{[%clk 00:32:29]} {[%emt 00:05:42]} Qc8 {[%clk 00:35:46]} {[%emt 00:02:32]} 10.
Qxc8+ {[%clk 00:28:17]} {[%emt 00:04:23]} Rxc8 {[%clk 00:35:55]} 11. e3 {[%clk
00:27:35]} {[%emt 00:00:51]} Nb4 {[%clk 00:22:38]} {[%emt 00:13:28]} 12. Bb5+
{[%clk 00:23:24]} {[%emt 00:04:20]} Kd8 {[%clk 00:19:51]} {[%emt 00:02:57]} 13.
O-O {[%clk 00:20:51]} {[%emt 00:02:43]} f6 {[%clk 00:17:21]} {[%emt 00:02:40]}
14. Rfc1 {[%clk 00:16:21]} {[%emt 00:04:40]} g5 {[%clk 00:12:13]} {[%emt
00:05:19]} 15. Nxe4 {[%clk 00:08:26]} {[%emt 00:08:05]} dxe4 {[%clk 00:11:34]}
{[%emt 00:00:49]} 16. Nxg5 {[%clk 00:08:33]} {[%emt 00:00:02]} Rxc1+ {[%clk
00:11:34]} {[%emt 00:00:10]} 17. Rxc1 {[%clk 00:08:42]} fxg5 {[%clk 00:11:43]}
{[%emt 00:00:02]} 18. Bc7+ {[%clk 00:08:43]} {[%emt 00:00:09]} Ke7 {[%clk
00:11:52]} {[%emt 00:00:02]} 19. Be5 {[%clk 00:08:52]} {[%emt 00:00:01]} Rg8
{[%clk 00:12:01]} 20. Rc7+ {[%clk 00:08:24]} {[%emt 00:00:38]} Kd8 {[%clk
00:12:10]} {[%emt 00:00:01]} 21. Rd7+ {[%clk 00:06:37]} {[%emt 00:01:57]} Kc8
{[%clk 00:12:19]} {[%emt 00:00:01]} 22. Rc7+ {[%clk 00:06:05]} {[%emt
00:00:41]} Kd8 {[%clk 00:12:28]} {[%emt 00:00:02]} 23. Rxa7 {[%clk 00:04:09]}
{[%emt 00:02:06]} Nd3 {[%clk 00:11:55]} {[%emt 00:00:43]} 24. Bc7+ {[%clk
00:02:29]} {[%emt 00:01:49]} Ke7 {[%clk 00:11:32]} {[%emt 00:00:33]} 25. Be5+
{[%clk 00:01:53]} {[%emt 00:00:46]} Kd8 {[%clk 00:11:41]} {[%emt 00:00:02]} 26.
Ra8+ {[%clk 00:00:34]} {[%emt 00:01:29]} Ke7 {[%clk 00:11:50]} 27. Ra7+ {[%clk
00:00:37]} {[%emt 00:00:07]} 1/2-1/2